fUSD/lending_fUSD_20250609
["ID","MTS","AMOUNT","RATE_DAILY","PERIOD"]
[365165698,1749507054234,-1897.75,0.00019506,2]
[365165699,1749507054244,-941.76,0.00019506,2]
[365165700,1749507054255,-490.0,0.00019506,2]
[365165701,1749507054265,-1777.32,0.00019506,2]
[365165702,1749507054274,-755.0,0.00019506,2]
[365165703,1749507054284,-772.99,0.00019506,2]
[365165704,1749507054295,-490.0,0.00019506,2]
[365165705,1749507054304,-737.76,0.00019506,2]
[365165706,1749507054314,-4416.68,0.00019506,2]
[365165707,1749507054323,-490.0,0.00019506,2]
[365165708,1749507054333,-522.07,0.00019506,2]
[365165709,1749507054343,-887.87,0.00019506,2]
[365165710,1749507054355,-490.0,0.00019506,2]
[365165711,1749507054365,-490.0,0.00019506,2]
[365165712,1749507054375,-539.06,0.00019506,2]
[365165713,1749507054385,-490.0,0.00019506,2]
[365165714,1749507054394,-1071.93,0.00019506,2]
[365165715,1749507054404,-490.0,0.00019506,2]
[365165716,1749507054414,-2203.56,0.00019506,2]
[365165717,1749507054423,-895.5,0.00019506,2]
[365165718,1749507054433,-1853.88,0.00019506,2]
[365165719,1749507054442,-490.0,0.00019506,2]
[365165720,1749507054452,-603.49,0.00019506,2]
[365165721,1749507054461,-1096.19,0.00019506,2]
[365165722,1749507054471,-2948.66,0.00019506,2]
[365165723,1749507054481,-959.14,0.00019506,2]
[365165724,1749507054491,-737.54,0.00019506,2]
[365165725,1749507054501,-490.0,0.00019506,2]
[365165726,1749507054510,-511.01,0.00019506,2]
[365165727,1749507054520,-782.91,0.00019506,2]
[365165728,1749507054530,-2132.88,0.00019506,2]
[365165729,1749507054539,-1279.96,0.00019506,2]
[365165730,1749507054549,-1107.22,0.00019506,2]
[365165731,1749507054559,-783.34,0.00019506,2]
[365165732,1749507054570,-1751.55,0.00019506,2]
[365165733,1749507054580,-1036.43,0.00019506,2]
[365165734,1749507054591,-1078.36,0.00019506,2]
[365165735,1749507054604,-490.0,0.00019506,2]
[365165736,1749507054614,-572.71,0.00019506,2]
[365165737,1749507054624,-760.12,0.00019506,2]
[365165738,1749507054633,-860.09,0.00019506,2]
[365165739,1749507054642,-490.0,0.00019506,2]
[365165740,1749507054652,-600.61,0.00019506,2]
[365165741,1749507054661,-593.68,0.00019506,2]
[365165742,1749507054670,-1467.53,0.00019506,2]
[365165743,1749507054680,-490.0,0.00019506,2]
[365165744,1749507054690,-490.0,0.00019506,2]
[365165745,1749507054711,-490.0,0.00019506,2]
[365165746,1749507054720,-490.0,0.00019506,2]
[365165747,1749507054730,-490.0,0.00019506,2]
[365165748,1749507054740,-506.84,0.00019506,2]
[365165749,1749507054749,-1287.49,0.00019506,2]
[365165750,1749507054758,-490.0,0.00019506,2]
[365165751,1749507054768,-519.38,0.00019506,2]
[365165752,1749507054777,-544.5,0.00019506,2]
[365165753,1749507054786,-811.36,0.00019506,2]
[365165754,1749507054796,-1631.08,0.00019506,2]
[365165755,1749507054806,-1373.97,0.00019506,2]
[365165756,1749507054815,-1186.56,0.00019506,2]
[365165757,1749507054825,-1060.77,0.00019506,2]
[365165758,1749507054835,-490.0,0.00019506,2]
[365165759,1749507054844,-893.86,0.00019506,2]
[365165760,1749507054855,-760.97,0.00019506,2]
[365165761,1749507054864,-1151.75,0.00019506,2]
[365165762,1749507054874,-2331.05,0.00019506,2]
[365165763,1749507054883,-696.71,0.00019506,2]
[365165764,1749507054893,-490.0,0.00019506,2]
[365165765,1749507054902,-1660.96,0.00019506,2]
[365165766,1749507054912,-910.84,0.00019506,2]
[365165767,1749507054921,-498.91,0.00019506,2]
[365165768,1749507054931,-826.27,0.00019506,2]
[365165769,1749507054940,-570.38,0.00019506,2]
[365165770,1749507054949,-545.6,0.00019506,2]
[365165771,1749507054959,-3056.8,0.00019506,2]
[365165772,1749507054968,-490.0,0.00019506,2]
[365165773,1749507054977,-717.36,0.00019506,2]
[365165774,1749507054986,-491.0,0.00019506,2]
[365165775,1749507054995,-721.08,0.00019506,2]
[365165776,1749507055004,-490.0,0.00019506,2]
[365165777,1749507055013,-1034.39,0.00019506,2]
[365165778,1749507055022,-490.0,0.00019506,2]
[365165779,1749507055031,-490.0,0.00019506,2]
[365165780,1749507055041,-566.73,0.00019506,2]
[365165781,1749507055050,-490.0,0.00019506,2]
[365165782,1749507055059,-490.0,0.00019506,2]
[365165783,1749507055069,-490.0,0.00019506,2]
[365165784,1749507055078,-547.78,0.00019506,2]
[365165785,1749507055087,-490.0,0.00019506,2]
[365165786,1749507055099,-1318.97,0.00019506,2]
[365165787,1749507055108,-490.0,0.00019506,2]
[365165788,1749507055118,-490.0,0.00019506,2]
[365165789,1749507055127,-509.39,0.00019506,2]
[365165790,1749507055137,-819.28,0.00019506,2]
[365165791,1749507055146,-490.0,0.00019506,2]
[365165792,1749507055155,-490.0,0.00019506,2]
[365165793,1749507055164,-490.0,0.00019506,2]
[365165794,1749507055174,-490.0,0.00019506,2]
[365165795,1749507055183,-490.0,0.00019506,2]
[365165796,1749507055192,-490.0,0.00019506,2]
[365165797,1749507055201,-765.62,0.00019506,2]
[365165798,1749507055210,-513.81,0.00019506,2]
[365165799,1749507055220,-490.0,0.00019506,2]
[365165800,1749507055230,-1285.3,0.00019506,2]
[365165801,1749507055240,-628.27,0.00019506,2]
[365165802,1749507055252,-490.0,0.00019506,2]
[365165803,1749507055262,-2187.9,0.00019506,2]
[365165804,1749507055272,-2400.14,0.00019506,2]
[365165805,1749507055281,-1738.89,0.00019506,2]
[365165806,1749507055292,-490.0,0.00019506,2]
[365165807,1749507055301,-490.0,0.00019506,2]
[365165808,1749507055311,-1053.65,0.00019506,2]
[365165809,1749507055320,-490.0,0.00019506,2]
[365165810,1749507055331,-4195.3,0.00019506,2]
[365165811,1749507055340,-490.0,0.00019506,2]
[365165812,1749507055351,-558.88,0.00019506,2]
[365165813,1749507055360,-490.0,0.00019506,2]
[365165814,1749507055370,-1025.56,0.00019506,2]
[365165815,1749507055380,-1398.14,0.00019506,2]
[365165816,1749507055390,-564.17,0.00019506,2]
[365165817,1749507055399,-1477.81,0.00019506,2]
[365165818,1749507055409,-2907.87,0.00019506,2]
[365165819,1749507055420,-490.0,0.00019506,2]
[365165820,1749507055431,-490.0,0.00019506,2]
[365165821,1749507055441,-490.0,0.00019506,2]
[365165822,1749507055451,-1104.2,0.00019506,2]
[365165823,1749507055460,-606.59,0.00019506,2]
[365165824,1749507055470,-490.0,0.00019506,2]
[365165825,1749507055480,-1506.92,0.00019506,2]
[365165826,1749507055490,-757.86,0.00019506,2]
[365165827,1749507055501,-602.88,0.00019506,2]
[365165828,1749507055511,-490.0,0.00019506,2]
[365165829,1749507055521,-490.0,0.00019506,2]
[365165830,1749507055531,-490.0,0.00019506,2]
[365165831,1749507055541,-490.0,0.00019506,2]
[365165832,1749507055551,-514.59,0.00019506,2]
[365165833,1749507055562,-490.0,0.00019506,2]
[365165834,1749507055572,-1733.9,0.00019506,2]
[365165835,1749507055581,-490.0,0.00019506,2]
[365165836,1749507055591,-490.0,0.00019506,2]
[365165837,1749507055742,-895.59,0.00019506,2]
[365165838,1749507055752,-651.56,0.00019506,2]
[365165839,1749507055761,-496.19,0.00019506,2]
[365165840,1749507055771,-798.77,0.00019506,2]
[365165841,1749507055781,-490.0,0.00019506,2]
[365165842,1749507055791,-490.0,0.00019506,2]
[365165843,1749507055800,-490.0,0.00019506,2]
[365165844,1749507055810,-987.65,0.00019506,2]
[365165845,1749507055820,-490.0,0.00019506,2]
[365165846,1749507055829,-548.87,0.00019506,2]
[365165847,1749507055839,-490.0,0.00019506,2]
[365165848,1749507055849,-490.0,0.00019506,2]
[365165849,1749507055859,-490.0,0.00019506,2]
[365165850,1749507055868,-1396.6,0.00019506,2]
[365165851,1749507055878,-490.0,0.00019506,2]
[365165852,1749507055888,-490.0,0.00019506,2]
[365165853,1749507055898,-490.0,0.00019506,2]
[365165854,1749507055914,-988.26,0.00019506,2]
[365165855,1749507055924,-1933.85,0.00019506,2]
[365165856,1749507055934,-490.0,0.00019506,2]
[365165857,1749507055944,-490.0,0.00019506,2]
[365165858,1749507055954,-1817.1,0.00019506,2]
[365165859,1749507055964,-619.05,0.00019506,2]
[365165860,1749507055974,-3078.2,0.00019506,2]
[365165861,1749507055984,-942.12,0.00019506,2]
[365165862,1749507055994,-490.0,0.00019506,2]
[365165863,1749507056004,-546.85,0.00019506,2]
[365165864,1749507056013,-1002.66,0.00019506,2]
[365165865,1749507056023,-675.27,0.00019506,2]
[365165866,1749507056033,-903.7103641,0.00019506,2]
[365165867,1749507056043,-745.6160821,0.00019511,2]
[365165868,1749507056053,-1045.31738758,0.00019535,2]
[365165869,1749507056062,-166.76,0.00019551,2]
[365165870,1749507056072,-745.6160821,0.00019554,2]
[365165871,1749507056082,-202.02398717,0.00019567,2]
[365165872,1749507056092,-1154.55,0.00019572,2]
[365165873,1749507056103,-500.0,0.00019573,2]
[365165874,1749507056113,-500.0,0.00019573,2]
[365165875,1749507056123,-500.0,0.00019573,2]
[365165876,1749507056134,-500.0,0.00019573,2]
[365165877,1749507056144,-500.0,0.00019573,2]
[365165878,1749507056153,-500.0,0.00019573,2]
[365165879,1749507056164,-553.21533485,0.00019573,2]
[365165880,1749507056174,-500.0,0.00019573,2]
[365165881,1749507056185,-500.0,0.00019573,2]
[365165882,1749507056195,-500.0,0.00019573,2]
[365165883,1749507056204,-500.0,0.00019573,2]
[365165884,1749507056215,-500.0,0.00019573,2]
[365165885,1749507056226,-500.0,0.00019573,2]
[365165886,1749507056236,-541.67148839,0.00019573,2]
[365165887,1749507056248,-500.0,0.00019573,2]
[365165888,1749507056259,-500.0,0.00019573,2]
[365165889,1749507056270,-500.0,0.00019573,2]
[365165890,1749507056281,-500.0,0.00019573,2]
[365165891,1749507056291,-151.0,0.00019573,2]
[365165892,1749507056302,-169.50026,0.00019573,2]
[365165893,1749507056312,-169.50026,0.00019573,2]
[365165894,1749507056322,-151.0,0.00019573,2]
[365165895,1749507056332,-190.39014162,0.00019583,2]
[365165896,1749507056342,-745.6160821,0.00019597,2]
[365165897,1749507056353,-300.0,0.000196,7]
[365165898,1749507056364,-150.0,0.00019621,2]
[365165899,1749507056374,-150.0,0.00019624,2]
[365165900,1749507056384,-1045.31738758,0.00019626,2]
[365165901,1749507056394,-150.0,0.00019628,2]
[365165902,1749507056404,-202.02398717,0.00019633,2]
[365165903,1749507056415,-420.0,0.00019639,2]
[365165904,1749507056425,-745.6160821,0.0001964,2]
[365165905,1749507056435,-1000.0,0.00019642,2]
[365165906,1749507056445,-150.0,0.00019652,2]
[365165907,1749507056455,-150.0,0.00019654,2]
[365165908,1749507056465,-150.0,0.00019656,2]
[365165909,1749507056475,-150.0,0.00019659,2]
[365165910,1749507056485,-150.0,0.0001967,2]
[365165911,1749507056495,-1154.55,0.0001967,2]
[365165912,1749507056505,-500.0,0.0001967,2]
[365165913,1749507056515,-151.0,0.00019671,2]
[365165914,1749507056525,-169.50026,0.00019671,2]
[365165915,1749507056535,-169.50026,0.00019671,2]
[365165916,1749507056545,-187.59122,0.00019671,2]
[365165917,1749507056554,-274.445893,0.00019671,2]
[365165918,1749507056564,-230.138801,0.00019671,2]
[365165919,1749507056574,-510.21,0.00019671,2]
[365165920,1749507056584,-506.89,0.00019671,2]
[365165921,1749507056594,-490.0,0.00019671,2]
[365165922,1749507056605,-485.92070311,0.00019671,2]
[365165923,1749507056615,-490.0,0.00019671,2]
[365165924,1749507056625,-490.0,0.00019671,2]
[365165925,1749507056635,-490.0,0.00019671,2]
[365165926,1749507056644,-490.0,0.00019671,2]
[365165927,1749507056655,-490.0,0.00019671,2]
[365165928,1749507056664,-490.0,0.00019671,2]
[365165929,1749507056675,-490.0,0.00019671,2]
[365165930,1749507056684,-490.0,0.00019671,2]
[365165931,1749507056693,-490.0,0.00019671,2]
[365165932,1749507056703,-490.0,0.00019671,2]
[365165933,1749507056713,-490.0,0.00019671,2]
[365165934,1749507056722,-490.0,0.00019671,2]
[365165935,1749507056732,-490.0,0.00019671,2]
[365165936,1749507056742,-846.36,0.00019671,2]
[365165937,1749507056751,-490.0,0.00019671,2]
[365165938,1749507056761,-746.82,0.00019671,2]
[365165939,1749507056770,-500.48,0.00019671,2]
[365165940,1749507056780,-508.44,0.00019671,2]
[365165941,1749507056790,-490.0,0.00019671,2]
[365165942,1749507056799,-490.0,0.00019671,2]
[365165943,1749507056809,-490.0,0.00019671,2]
[365165944,1749507056819,-490.0,0.00019671,2]
[365165945,1749507056828,-437.48451998,0.00019671,2]
[365165946,1749507056838,-723.15,0.00019671,2]
[365165947,1749507056847,-490.0,0.00019671,2]
[365165948,1749507056857,-490.0,0.00019671,2]
[365165949,1749507056866,-490.0,0.00019671,2]
[365165950,1749507056876,-490.0,0.00019671,2]
[365165951,1749507056886,-490.0,0.00019671,2]
[365165952,1749507056896,-490.0,0.00019671,2]
[365165953,1749507056905,-490.0,0.00019671,2]
[365165954,1749507056915,-490.0,0.00019671,2]
[365165955,1749507056924,-880.94,0.00019671,2]
[365165956,1749507056934,-490.0,0.00019671,2]
[365165957,1749507056943,-628.27,0.00019671,2]
[365165958,1749507056952,-559.06,0.00019671,2]
[365165959,1749507056962,-476.94209014,0.00019671,2]
[365165960,1749507056973,-490.0,0.00019671,2]
[365165961,1749507056986,-490.0,0.00019671,2]
[365165962,1749507056995,-490.0,0.00019671,2]
[365165963,1749507057005,-597.02539459,0.00019671,2]
[365165964,1749507057015,-575.55,0.00019671,2]
[365165965,1749507057025,-490.0,0.00019671,2]
[365165966,1749507057035,-669.35,0.00019671,2]
[365165967,1749507057044,-490.0,0.00019671,2]
[365165968,1749507057054,-643.38,0.00019671,2]
[365165969,1749507057063,-405.37237328,0.00019671,2]
[365165970,1749507057073,-682.85,0.00019671,2]
[365165971,1749507057083,-1065.97,0.00019671,2]
[365165972,1749507057092,-490.0,0.00019671,2]
[365165973,1749507057103,-490.0,0.00019671,2]
[365165974,1749507057114,-490.0,0.00019671,2]
[365165975,1749507057123,-490.0,0.00019671,2]
[365165976,1749507057132,-490.0,0.00019671,2]
[365165977,1749507057142,-490.0,0.00019671,2]
[365165978,1749507057152,-1065.55,0.00019671,2]
[365165979,1749507057161,-490.0,0.00019671,2]
[365165980,1749507057171,-490.0,0.00019671,2]
[365165981,1749507057180,-503.4,0.00019671,2]
[365165982,1749507057190,-851.4,0.00019671,2]
[365165983,1749507057199,-1000.0,0.00019671,2]
[365165984,1749507057209,-490.0,0.00019671,2]
[365165985,1749507057219,-803.18,0.00019671,2]
[365165986,1749507057228,-530.24,0.00019671,2]
[365165987,1749507057238,-490.0,0.00019671,2]
[365165988,1749507057253,-490.0,0.00019671,2]
[365165989,1749507057263,-490.0,0.00019671,2]
[365165990,1749507057273,-490.0,0.00019671,2]
[365165991,1749507057283,-1150.13,0.00019671,2]
[365165992,1749507057294,-490.0,0.00019671,2]
[365165993,1749507057304,-853.07,0.00019671,2]
[365165994,1749507057314,-490.0,0.00019671,2]
[365165995,1749507057324,-490.0,0.00019671,2]
[365165996,1749507057335,-699.7,0.00019671,2]
[365165997,1749507057344,-490.0,0.00019671,2]
[365165998,1749507057356,-819.46,0.00019671,2]
[365165999,1749507057366,-490.0,0.00019671,2]
[365166000,1749507057376,-490.0,0.00019671,2]
[365166001,1749507057385,-490.0,0.00019671,2]
[365166002,1749507057395,-490.0,0.00019671,2]
[365166003,1749507057404,-701.94,0.00019671,2]
[365166004,1749507057414,-854.05,0.00019671,2]
[365166005,1749507057424,-490.0,0.00019671,2]
[365166006,1749507057434,-709.31,0.00019671,2]
[365166007,1749507057444,-490.0,0.00019671,2]
[365166008,1749507057454,-490.0,0.00019671,2]
[365166009,1749507057464,-490.0,0.00019671,2]
[365166010,1749507057473,-490.0,0.00019671,2]
[365166011,1749507057483,-1420.54,0.00019671,2]
[365166012,1749507057493,-490.0,0.00019671,2]
[365166013,1749507057503,-973.4,0.00019671,2]
[365166014,1749507057513,-490.0,0.00019671,2]
[365166015,1749507057523,-490.0,0.00019671,2]
[365166016,1749507057532,-490.0,0.00019671,2]
[365166017,1749507057542,-490.0,0.00019671,2]
[365166018,1749507057552,-490.0,0.00019671,2]
[365166019,1749507057561,-490.0,0.00019671,2]
[365166020,1749507057571,-490.0,0.00019671,2]
[365166021,1749507057581,-490.0,0.00019671,2]
[365166022,1749507057591,-508.53,0.00019671,2]
[365166023,1749507057601,-490.0,0.00019671,2]
[365166024,1749507057611,-499.64,0.00019671,2]
[365166025,1749507057621,-856.32,0.00019671,2]
[365166026,1749507057631,-532.35,0.00019671,2]
[365166027,1749507057641,-490.0,0.00019671,2]
[365166028,1749507057650,-1004.19,0.00019671,2]
[365166029,1749507057660,-490.0,0.00019671,2]
[365166030,1749507057670,-490.0,0.00019671,2]
[365166031,1749507057679,-501.30217024,0.00019671,2]
[365166032,1749507057689,-1058.91,0.00019671,2]
[365166033,1749507057699,-490.0,0.00019671,2]
[365166034,1749507057709,-535.1,0.00019671,2]
[365166035,1749507057719,-634.22,0.00019671,2]
[365166036,1749507057728,-490.0,0.00019671,2]
[365166037,1749507057737,-490.0,0.00019671,2]
[365166038,1749507057747,-490.0,0.00019671,2]
[365166039,1749507057757,-490.0,0.00019671,2]
[365166040,1749507057767,-492.34,0.00019671,2]
[365166041,1749507057776,-490.0,0.00019671,2]
[365166042,1749507057786,-490.0,0.00019671,2]
[365166043,1749507057795,-513.15,0.00019671,2]
[365166044,1749507057805,-490.0,0.00019671,2]
[365166045,1749507057815,-565.17,0.00019671,2]
[365166046,1749507057826,-498.64558484,0.00019671,2]
[365166047,1749507057836,-490.0,0.00019671,2]
[365166048,1749507057845,-376.74483271,0.00019671,2]
[365166049,1749507057856,-490.0,0.00019671,2]
[365166050,1749507057867,-1007.95,0.00019671,2]
[365166051,1749507057876,-490.0,0.00019671,2]
[365166052,1749507057886,-620.03,0.00019671,2]
[365166053,1749507057896,-193.95181614,0.00019671,2]
[365166054,1749507057906,-1164.18,0.00019671,2]
[365166055,1749507057915,-490.0,0.00019671,2]
[365166056,1749507058275,-634.76,0.00019671,2]
[365166057,1749507058287,-490.0,0.00019671,2]
[365166058,1749507058297,-490.0,0.00019671,2]
[365166059,1749507058307,-490.0,0.00019671,2]
[365166060,1749507058316,-490.0,0.00019671,2]
[365166061,1749507058326,-490.0,0.00019671,2]
[365166062,1749507058336,-542.72,0.00019671,2]
[365166063,1749507058346,-551.16,0.00019671,2]
[365166064,1749507058358,-926.98,0.00019671,2]
[365166065,1749507058368,-490.0,0.00019671,2]
[365166066,1749507058377,-490.0,0.00019671,2]
[365166067,1749507058387,-490.0,0.00019671,2]
[365166068,1749507058397,-524.82,0.00019671,2]
[365166069,1749507058407,-490.0,0.00019671,2]
[365166070,1749507058417,-490.0,0.00019671,2]
[365166071,1749507058427,-1358.3,0.00019671,2]
[365166072,1749507058437,-582.72,0.00019671,2]
[365166073,1749507058446,-213.15918563,0.00019671,2]
[365166074,1749507058455,-1000.91,0.00019671,2]
[365166075,1749507058466,-1005.84,0.00019671,2]
[365166076,1749507058476,-490.0,0.00019671,2]
[365166077,1749507058486,-490.0,0.00019671,2]
[365166078,1749507058495,-799.5,0.00019671,2]
[365166079,1749507058505,-625.68,0.00019671,2]
[365166080,1749507058515,-490.0,0.00019671,2]
[365166081,1749507058524,-490.0,0.00019671,2]
[365166082,1749507058535,-490.0,0.00019671,2]
[365166083,1749507058545,-725.72,0.00019671,2]
[365166084,1749507058555,-490.0,0.00019671,2]
[365166085,1749507058566,-831.35,0.00019671,2]
[365166086,1749507058576,-490.0,0.00019671,2]
[365166087,1749507058586,-490.0,0.00019671,2]
[365166088,1749507058597,-663.1,0.00019671,2]
[365166089,1749507058609,-490.0,0.00019671,2]
[365166090,1749507058619,-490.0,0.00019671,2]
[365166091,1749507058629,-17725.6,0.00019671,2]
[365166092,1749507058639,-735.23,0.00019671,2]
[365166093,1749507058649,-490.0,0.00019671,2]
[365166094,1749507058659,-490.0,0.00019671,2]
[365166095,1749507058669,-1098.27,0.00019671,2]
[365166096,1749507058679,-490.0,0.00019671,2]
[365166097,1749507058689,-490.0,0.00019671,2]
[365166098,1749507058699,-1889.3,0.00019671,2]
[365166099,1749507058710,-490.0,0.00019671,2]
[365166100,1749507058720,-893.16,0.00019671,2]
[365166101,1749507058730,-508.30493701,0.00019671,2]
[365166102,1749507058740,-1897.75,0.00019671,2]
[365166103,1749507058750,-941.76,0.00019671,2]
[365166104,1749507058760,-490.0,0.00019671,2]
[365166105,1749507058770,-1777.32,0.00019671,2]
[365166106,1749507058780,-755.0,0.00019671,2]
[365166107,1749507058790,-772.99,0.00019671,2]
[365166108,1749507058800,-490.0,0.00019671,2]
[365166109,1749507058810,-737.76,0.00019671,2]
[365166110,1749507058819,-4416.68,0.00019671,2]
[365166111,1749507058829,-490.0,0.00019671,2]
[365166112,1749507058839,-522.07,0.00019671,2]
[365166113,1749507058848,-887.87,0.00019671,2]
[365166114,1749507058858,-490.0,0.00019671,2]
[365166115,1749507058868,-539.06,0.00019671,2]
[365166116,1749507058878,-490.0,0.00019671,2]
[365166117,1749507058888,-490.0,0.00019671,2]
[365166118,1749507058898,-1071.93,0.00019671,2]
[365166119,1749507058908,-490.0,0.00019671,2]
[365166120,1749507058918,-2203.56,0.00019671,2]
[365166121,1749507058927,-895.5,0.00019671,2]
[365166122,1749507058937,-1853.88,0.00019671,2]
[365166123,1749507058947,-490.0,0.00019671,2]
[365166124,1749507058956,-603.49,0.00019671,2]
[365166125,1749507058966,-1096.19,0.00019671,2]
[365166126,1749507058975,-2948.66,0.00019671,2]
[365166127,1749507058985,-959.14,0.00019671,2]
[365166128,1749507058995,-737.54,0.00019671,2]
[365166129,1749507059005,-490.0,0.00019671,2]
[365166130,1749507059015,-511.01,0.00019671,2]
[365166131,1749507059024,-782.91,0.00019671,2]
[365166132,1749507059034,-2132.88,0.00019671,2]
[365166133,1749507059044,-1279.96,0.00019671,2]
[365166134,1749507059054,-1107.22,0.00019671,2]
[365166135,1749507059064,-783.34,0.00019671,2]
[365166136,1749507059073,-1751.55,0.00019671,2]
[365166137,1749507059083,-1036.43,0.00019671,2]
[365166138,1749507059093,-1078.36,0.00019671,2]
[365166139,1749507059104,-490.0,0.00019671,2]
[365166140,1749507059114,-572.71,0.00019671,2]
[365166141,1749507059123,-760.12,0.00019671,2]
[365166142,1749507059133,-860.09,0.00019671,2]
[365166143,1749507059142,-490.0,0.00019671,2]
[365166144,1749507059153,-600.61,0.00019671,2]
[365166145,1749507059162,-593.68,0.00019671,2]
[365166146,1749507059172,-1467.53,0.00019671,2]
[365166147,1749507059182,-490.0,0.00019671,2]
[365166148,1749507059192,-490.0,0.00019671,2]
[365166149,1749507059202,-522.08,0.00019671,2]
[365166150,1749507059211,-490.0,0.00019671,2]
[365166151,1749507059221,-490.0,0.00019671,2]
[365166152,1749507059232,-506.84,0.00019671,2]
[365166153,1749507059241,-1287.49,0.00019671,2]
[365166154,1749507059254,-490.0,0.00019671,2]
[365166155,1749507059263,-519.38,0.00019671,2]
[365166156,1749507059273,-544.5,0.00019671,2]
[365166157,1749507059284,-811.36,0.00019671,2]
[365166158,1749507059295,-1631.08,0.00019671,2]
[365166159,1749507059304,-1373.97,0.00019671,2]
[365166160,1749507059315,-1186.56,0.00019671,2]
[365166161,1749507059330,-1060.77,0.00019671,2]
[365166162,1749507059342,-490.0,0.00019671,2]
[365166163,1749507059355,-893.86,0.00019671,2]
[365166164,1749507059365,-1151.75,0.00019671,2]
[365166165,1749507059376,-760.97,0.00019671,2]
[365166166,1749507059386,-2331.05,0.00019671,2]
[365166167,1749507059396,-696.71,0.00019671,2]
[365166168,1749507059406,-490.0,0.00019671,2]
[365166169,1749507059417,-1660.96,0.00019671,2]
[365166170,1749507059427,-910.84,0.00019671,2]
[365166171,1749507059437,-498.91,0.00019671,2]
[365166172,1749507059447,-826.27,0.00019671,2]
[365166173,1749507059458,-570.38,0.00019671,2]
[365166174,1749507059468,-545.6,0.00019671,2]
[365166175,1749507059478,-3056.8,0.00019671,2]
[365166176,1749507059488,-490.0,0.00019671,2]
[365166177,1749507059498,-717.36,0.00019671,2]
[365166178,1749507059508,-491.0,0.00019671,2]
[365166179,1749507059518,-721.08,0.00019671,2]
[365166180,1749507059528,-490.0,0.00019671,2]
[365166181,1749507059538,-1034.39,0.00019671,2]
[365166182,1749507059548,-490.0,0.00019671,2]
[365166183,1749507059558,-490.0,0.00019671,2]
[365166184,1749507059567,-566.73,0.00019671,2]
[365166185,1749507059577,-490.0,0.00019671,2]
[365166186,1749507059587,-490.0,0.00019671,2]
[365166187,1749507059597,-490.0,0.00019671,2]
[365166188,1749507059608,-547.78,0.00019671,2]
[365166189,1749507059618,-490.0,0.00019671,2]
[365166190,1749507059627,-1318.97,0.00019671,2]
[365166191,1749507059638,-490.0,0.00019671,2]
[365166192,1749507059648,-490.0,0.00019671,2]
[365166193,1749507059658,-509.39,0.00019671,2]
[365166194,1749507059669,-819.28,0.00019671,2]
[365166195,1749507059679,-490.0,0.00019671,2]
[365166196,1749507059689,-490.0,0.00019671,2]
[365166197,1749507059699,-490.0,0.00019671,2]